[Event "*** Titled Tuesday Blitz"]
[Site "Chess.com"]
[Date "2020.05.12"]
[Round "5"]
[White "TheSodabread"]
[Black "ZoltanChef"]
[Result "1-0"]
[WhiteElo "1961"]
[BlackElo "2122"]
[TimeControl "180+1"]
[EndTime "10:56:25 PDT"]
[Termination "TheSodabread won by checkmate"]

1. d4 {[%clk 0:03:00.9]} 1... g6 {[%clk 0:02:22.2]} 2. e4 {[%clk 0:02:55.7]}
2... Bg7 {[%clk 0:02:22]} 3. Nc3 {[%clk 0:02:56.3]} 3... c5 {[%clk 0:02:22.9]}
4. dxc5 {[%clk 0:02:55.5]} 4... Bxc3+ {[%clk 0:02:22.6]} 5. bxc3 {[%clk
0:02:56.4]} 5... Qa5 {[%clk 0:02:23.1]} 6. Qd4 {[%clk 0:02:51.6]} 6... Nf6
{[%clk 0:02:22.1]} 7. Qb4 {[%clk 0:02:31.7]} 7... Nc6 {[%clk 0:02:17.2]} 8. Qxa5
{[%clk 0:02:25.7]} 8... Nxa5 {[%clk 0:02:17.4]} 9. Bd3 {[%clk 0:02:26]} 9... b6
{[%clk 0:02:01]} 10. cxb6 {[%clk 0:02:25.7]} 10... axb6 {[%clk 0:02:01.2]} 11.
Be3 {[%clk 0:02:11.2]} 11... Ba6 {[%clk 0:02:00.1]} 12. Bxb6 {[%clk 0:02:05.3]}
12... Nc4 {[%clk 0:02:00.6]} 13. Bd4 {[%clk 0:02:00.8]} 13... e5 {[%clk
0:02:00.2]} 14. Bxc4 {[%clk 0:01:51.3]} 14... exd4 {[%clk 0:01:59.9]} 15. Bxa6
{[%clk 0:01:50.7]} 15... Rxa6 {[%clk 0:01:59.7]} 16. cxd4 {[%clk 0:01:42.2]}
16... Nxe4 {[%clk 0:01:57.8]} 17. Ne2 {[%clk 0:01:40.4]} 17... O-O {[%clk
0:01:57.4]} 18. f3 {[%clk 0:01:39.9]} 18... Nd6 {[%clk 0:01:50.6]} 19. a4 {[%clk
0:01:31.8]} 19... Re8 {[%clk 0:01:48.3]} 20. Kf2 {[%clk 0:01:25.6]} 20... Nf5
{[%clk 0:01:43.1]} 21. Rhd1 {[%clk 0:01:15.6]} 21... Rea8 {[%clk 0:01:39.4]} 22.
Nc3 {[%clk 0:01:10.6]} 22... Rc6 {[%clk 0:01:36.1]} 23. Ra3 {[%clk 0:01:07.3]}
23... Rac8 {[%clk 0:01:35.2]} 24. Rd3 {[%clk 0:01:05.8]} 24... Nxd4 {[%clk
0:01:35]} 25. Rxd4 {[%clk 0:01:06.7]} 25... Rxc3 {[%clk 0:01:34.6]} 26. Rxc3
{[%clk 0:01:07.6]} 26... Rxc3 {[%clk 0:01:35.1]} 27. Rxd7 {[%clk 0:00:57.9]}
27... Rxc2+ {[%clk 0:01:35]} 28. Kg3 {[%clk 0:00:58.5]} 28... Ra2 {[%clk
0:01:35.4]} 29. Ra7 {[%clk 0:00:58.6]} 29... h5 {[%clk 0:01:35.7]} 30. h4 {[%clk
0:00:58.7]} 30... Kg7 {[%clk 0:01:35.7]} 31. a5 {[%clk 0:00:58.6]} 31... Kf6
{[%clk 0:01:35.4]} 32. a6 {[%clk 0:00:58]} 32... Ke6 {[%clk 0:01:35.8]} 33. Ra8
{[%clk 0:00:53.2]} 33... Kf6 {[%clk 0:01:35.1]} 34. a7 {[%clk 0:00:53]} 34...
Kg7 {[%clk 0:01:35.1]} 35. Kh3 {[%clk 0:00:50.4]} 35... Kf6 {[%clk 0:01:35.2]}
36. g3 {[%clk 0:00:48.7]} 36... Ra3 {[%clk 0:01:33.9]} 37. Kg2 {[%clk
0:00:45.9]} 37... Ra2+ {[%clk 0:01:32.2]} 38. Kf1 {[%clk 0:00:45.7]} 38... Kg7
{[%clk 0:01:28.1]} 39. g4 {[%clk 0:00:44.9]} 39... Kh7 {[%clk 0:01:21.8]} 40.
gxh5 {[%clk 0:00:41.5]} 40... gxh5 {[%clk 0:01:22.7]} 41. Ke1 {[%clk 0:00:41.5]}
41... Kg7 {[%clk 0:01:22.2]} 42. Kd1 {[%clk 0:00:42]} 42... Kh7 {[%clk
0:01:22.4]} 43. Kc1 {[%clk 0:00:42.5]} 43... Kg7 {[%clk 0:01:22.7]} 44. Kb1
{[%clk 0:00:43]} 44... Ra6 {[%clk 0:01:23.2]} 45. Kb2 {[%clk 0:00:43.2]} 45...
Ra5 {[%clk 0:01:23.1]} 46. Kb3 {[%clk 0:00:43.8]} 46... Ra6 {[%clk 0:01:23.1]}
47. Kb4 {[%clk 0:00:44.2]} 47... Ra1 {[%clk 0:01:23.5]} 48. Kc5 {[%clk
0:00:36.3]} 48... Rc1+ {[%clk 0:01:22.8]} 49. Kd5 {[%clk 0:00:36.7]} 49... Rd1+
{[%clk 0:01:22.8]} 50. Ke5 {[%clk 0:00:37.1]} 50... Re1+ {[%clk 0:01:23]} 51.
Kf5 {[%clk 0:00:37.2]} 51... Ra1 {[%clk 0:01:21.4]} 52. f4 {[%clk 0:00:29.4]}
52... Ra5+ {[%clk 0:01:20.9]} 53. Ke4 {[%clk 0:00:28.8]} 53... Kh7 {[%clk
0:01:12.2]} 54. f5 {[%clk 0:00:27.4]} 54... f6 {[%clk 0:01:08.8]} 55. Kd4 {[%clk
0:00:27.3]} 55... Kg7 {[%clk 0:01:08.6]} 56. Kc4 {[%clk 0:00:27.6]} 56... Ra1
{[%clk 0:01:04.3]} 57. Kb3 {[%clk 0:00:17.5]} 57... Rb1+ {[%clk 0:01:02.5]} 58.
Ka2 {[%clk 0:00:17]} 58... Rb6 {[%clk 0:01:02.6]} 59. Rg8+ {[%clk 0:00:14.9]}
59... Kxg8 {[%clk 0:01:00.7]} 60. a8=Q+ {[%clk 0:00:15.8]} 60... Kg7 {[%clk
0:01:01.2]} 61. Qa7+ {[%clk 0:00:16.3]} 61... Kh6 {[%clk 0:01:01]} 62. Qxb6
{[%clk 0:00:15.9]} 62... Kg7 {[%clk 0:01:01]} 63. Kb3 {[%clk 0:00:15.9]} 63...
Kf7 {[%clk 0:01:00.6]} 64. Kc3 {[%clk 0:00:16.8]} 64... Kg7 {[%clk 0:01:01.5]}
65. Kd4 {[%clk 0:00:17.7]} 65... Kh6 {[%clk 0:01:00.8]} 66. Qxf6+ {[%clk
0:00:17.2]} 66... Kh7 {[%clk 0:01:00.5]} 67. Qg5 {[%clk 0:00:16.8]} 67... Kh8
{[%clk 0:01:00.4]} 68. f6 {[%clk 0:00:17.7]} 68... Kh7 {[%clk 0:01:01.3]} 69.
Qg7# {[%clk 0:00:18.6]} 1-0

[Event "*** Titled Tuesday Blitz"]
[Site "Chess.com"]
[Date "2020.05.12"]
[Round "5"]
[White "14Sokol88"]
[Black "Abund"]
[Result "0-1"]
[WhiteElo "2384"]
[BlackElo "2624"]
[TimeControl "180+1"]
[EndTime "10:56:26 PDT"]
[Termination "Abund won on time"]

1. e4 {[%clk 0:03:00.9]} 1... c5 {[%clk 0:02:55]} 2. Nf3 {[%clk 0:03:00]} 2...
Nc6 {[%clk 0:02:54.1]} 3. d4 {[%clk 0:02:57.6]} 3... cxd4 {[%clk 0:02:52.5]} 4.
Nxd4 {[%clk 0:02:57.9]} 4... Nf6 {[%clk 0:02:52.9]} 5. Nc3 {[%clk 0:02:58]} 5...
e5 {[%clk 0:02:53.3]} 6. Ndb5 {[%clk 0:02:57.1]} 6... d6 {[%clk 0:02:53.7]} 7.
Bg5 {[%clk 0:02:56.1]} 7... a6 {[%clk 0:02:53.8]} 8. Na3 {[%clk 0:02:55.8]} 8...
b5 {[%clk 0:02:54.2]} 9. Nd5 {[%clk 0:02:55]} 9... Be7 {[%clk 0:02:54.5]} 10.
Bxf6 {[%clk 0:02:53.7]} 10... Bxf6 {[%clk 0:02:55.1]} 11. c3 {[%clk 0:02:53.9]}
11... Rb8 {[%clk 0:02:54.3]} 12. Nc2 {[%clk 0:02:50.5]} 12... Bg5 {[%clk
0:02:54.4]} 13. g3 {[%clk 0:02:48.4]} 13... O-O {[%clk 0:02:48.3]} 14. Bg2
{[%clk 0:02:48.5]} 14... a5 {[%clk 0:02:42.3]} 15. a3 {[%clk 0:02:43.3]} 15...
Ne7 {[%clk 0:02:31.5]} 16. Nce3 {[%clk 0:02:38.4]} 16... Be6 {[%clk 0:02:07]}
17. Nxe7+ {[%clk 0:02:28]} 17... Qxe7 {[%clk 0:02:01.1]} 18. Nd5 {[%clk
0:02:27.4]} 18... Qb7 {[%clk 0:01:54.2]} 19. h4 {[%clk 0:02:00.1]} 19... Bxd5
{[%clk 0:01:47.9]} 20. Qxd5 {[%clk 0:01:48.3]} 20... Qxd5 {[%clk 0:01:47.3]} 21.
exd5 {[%clk 0:01:49.2]} 21... Bd8 {[%clk 0:01:28.6]} 22. Bh3 {[%clk 0:01:22]}
22... f5 {[%clk 0:01:23.7]} 23. g4 {[%clk 0:01:21.1]} 23... g6 {[%clk
0:01:22.2]} 24. h5 {[%clk 0:01:18.6]} 24... Kg7 {[%clk 0:01:10.6]} 25. hxg6
{[%clk 0:01:13]} 25... hxg6 {[%clk 0:01:10.7]} 26. gxf5 {[%clk 0:01:11.8]} 26...
gxf5 {[%clk 0:01:10.4]} 27. Ke2 {[%clk 0:01:08.5]} 27... Bg5 {[%clk 0:00:47.1]}
28. f3 {[%clk 0:00:52.3]} 28... Kf6 {[%clk 0:00:45]} 29. Kd3 {[%clk 0:00:48.5]}
29... Rbc8 {[%clk 0:00:29.8]} 30. Bf1 {[%clk 0:00:26.9]} 30... Rc5 {[%clk
0:00:27.1]} 31. Kc2 {[%clk 0:00:20.1]} 31... Rxd5 {[%clk 0:00:26.9]} 32. Bd3
{[%clk 0:00:20.3]} 32... Rc8 {[%clk 0:00:18.6]} 33. Rad1 {[%clk 0:00:15.3]}
33... b4 {[%clk 0:00:14.9]} 34. axb4 {[%clk 0:00:15.1]} 34... axb4 {[%clk
0:00:14.7]} 35. c4 {[%clk 0:00:15.2]} 35... Rd4 {[%clk 0:00:12.5]} 36. Kb3
{[%clk 0:00:11.8]} 36... Rf4 {[%clk 0:00:09.9]} 37. Be2 {[%clk 0:00:09.3]} 37...
Rc6 {[%clk 0:00:06.7]} 38. Rh8 {[%clk 0:00:08.6]} 38... Rh4 {[%clk 0:00:06.4]}
39. Rxh4 {[%clk 0:00:06.2]} 39... Bxh4 {[%clk 0:00:06.4]} 40. Ra1 {[%clk
0:00:05.7]} 40... Bf2 {[%clk 0:00:06.2]} 41. Ra8 {[%clk 0:00:02.8]} 41... Rc7
{[%clk 0:00:04.5]} 42. Rg8 {[%clk 0:00:03.1]} 42... Bc5 {[%clk 0:00:04]} 43. Rg2
{[%clk 0:00:03.4]} 43... Rh7 {[%clk 0:00:03.6]} 44. Rh2 {[%clk 0:00:03.8]} 44...
Rxh2 {[%clk 0:00:03.6]} 0-1

[Event "*** Titled Tuesday Blitz"]
[Site "Chess.com"]
[Date "2020.05.12"]
[Round "5"]
[White "mamey78"]
[Black "mirceaparligras"]
[Result "1-0"]
[WhiteElo "2367"]
[BlackElo "2573"]
[TimeControl "180+1"]
[EndTime "10:56:26 PDT"]
[Termination "mamey78 won by resignation"]

1. e4 {[%clk 0:03:00.9]} 1... c5 {[%clk 0:02:59.9]} 2. Nf3 {[%clk 0:03:00.4]}
2... d6 {[%clk 0:03:00.4]} 3. d4 {[%clk 0:02:59.6]} 3... cxd4 {[%clk 0:03:01]}
4. Nxd4 {[%clk 0:02:59.8]} 4... Nf6 {[%clk 0:03:01.6]} 5. Nc3 {[%clk 0:03:00]}
5... a6 {[%clk 0:03:02.2]} 6. Bg5 {[%clk 0:02:59.4]} 6... e6 {[%clk 0:03:02.1]}
7. f4 {[%clk 0:02:58.6]} 7... Qc7 {[%clk 0:03:01.9]} 8. Bxf6 {[%clk 0:02:57]}
8... gxf6 {[%clk 0:03:02.8]} 9. f5 {[%clk 0:02:57.1]} 9... Nc6 {[%clk
0:02:55.1]} 10. fxe6 {[%clk 0:02:56.1]} 10... fxe6 {[%clk 0:02:54]} 11. Bc4
{[%clk 0:02:56.2]} 11... Nxd4 {[%clk 0:02:32.1]} 12. Qxd4 {[%clk 0:02:52.9]}
12... Rg8 {[%clk 0:02:20.8]} 13. O-O-O {[%clk 0:02:31.2]} 13... Bh6+ {[%clk
0:02:10]} 14. Kb1 {[%clk 0:02:29.2]} 14... Bf4 {[%clk 0:02:10.1]} 15. Qxf6
{[%clk 0:01:42.8]} 15... Be5 {[%clk 0:02:08.3]} 16. Nb5 {[%clk 0:01:18.4]} 16...
Qd7 {[%clk 0:01:16.8]} 17. Nxd6+ {[%clk 0:01:11.6]} 17... Qxd6 {[%clk
0:01:14.1]} 18. Rxd6 {[%clk 0:00:46.1]} 18... Bxf6 {[%clk 0:01:13.6]} 19. Bxe6
{[%clk 0:00:44.8]} 19... Ke7 {[%clk 0:00:58.8]} 20. Bxg8 {[%clk 0:00:38.2]}
20... Kxd6 {[%clk 0:00:59.1]} 21. Bxh7 {[%clk 0:00:36.9]} 21... Be6 {[%clk
0:00:57.5]} 22. Bf5 {[%clk 0:00:29.4]} 22... Ke5 {[%clk 0:00:55.2]} 23. Rf1
{[%clk 0:00:23.5]} 23... Rd8 {[%clk 0:00:50.9]} 24. a3 {[%clk 0:00:12.2]} 24...
Rd2 {[%clk 0:00:49.6]} 25. g4 {[%clk 0:00:11.3]} 25... Rxh2 {[%clk 0:00:46.8]}
26. Rd1 {[%clk 0:00:11.5]} 26... Rh8 {[%clk 0:00:34.5]} 27. Re1 {[%clk
0:00:09.3]} 27... Rd8 {[%clk 0:00:33.3]} 28. Rg1 {[%clk 0:00:08.8]} 28... Bg5
{[%clk 0:00:33]} 29. Rf1 {[%clk 0:00:08.9]} 29... Bf4 {[%clk 0:00:31.8]} 30.
Bxe6 {[%clk 0:00:07.6]} 30... Kxe6 {[%clk 0:00:28.5]} 31. Rxf4 {[%clk
0:00:06.4]} 31... Ke5 {[%clk 0:00:29.4]} 32. Rf7 {[%clk 0:00:06]} 32... b5
{[%clk 0:00:28.6]} 33. g5 {[%clk 0:00:05.7]} 33... Rd1+ {[%clk 0:00:27.3]} 34.
Ka2 {[%clk 0:00:04.4]} 34... Rg1 {[%clk 0:00:28.2]} 35. Ra7 {[%clk 0:00:04]}
35... Kxe4 {[%clk 0:00:28.3]} 36. Rxa6 {[%clk 0:00:04.3]} 36... Rxg5 {[%clk
0:00:29]} 37. Ra5 {[%clk 0:00:04.6]} 37... Kd4 {[%clk 0:00:28.5]} 38. c3+ {[%clk
0:00:05.5]} 38... Kc4 {[%clk 0:00:28.4]} 39. a4 {[%clk 0:00:05.5]} 39... Rg8
{[%clk 0:00:27.3]} 40. Rxb5 {[%clk 0:00:06.4]} 40... Ra8 {[%clk 0:00:27.6]} 41.
Rb4+ {[%clk 0:00:07.3]} 41... Kc5 {[%clk 0:00:27.9]} 42. Ka3 {[%clk 0:00:08.2]}
42... Ra7 {[%clk 0:00:28.1]} 43. b3 {[%clk 0:00:09.1]} 43... Ra8 {[%clk
0:00:28.3]} 44. Rb5+ {[%clk 0:00:10]} 44... Kc6 {[%clk 0:00:28.3]} 45. b4 {[%clk
0:00:10.6]} 45... Re8 {[%clk 0:00:28.1]} 46. Rc5+ {[%clk 0:00:11.5]} 46... Kb6
{[%clk 0:00:27.7]} 47. a5+ {[%clk 0:00:12.4]} 47... Kb7 {[%clk 0:00:28.6]} 48.
c4 {[%clk 0:00:12.4]} 48... Re3+ {[%clk 0:00:28.7]} 49. Ka4 {[%clk 0:00:13.3]}
49... Re1 {[%clk 0:00:29.5]} 50. Kb5 {[%clk 0:00:13.4]} 50... Re6 {[%clk
0:00:30.2]} 51. Rg5 {[%clk 0:00:13.3]} 51... Re7 {[%clk 0:00:30.1]} 52. a6+
{[%clk 0:00:13.4]} 52... Ka7 {[%clk 0:00:30.5]} 53. Rd5 {[%clk 0:00:14]} 53...
Rc7 {[%clk 0:00:30.2]} 54. c5 {[%clk 0:00:13.3]} 54... Re7 {[%clk 0:00:29.7]}
55. Ka5 {[%clk 0:00:12.7]} 55... Rc7 {[%clk 0:00:29.5]} 56. Rd6 {[%clk
0:00:11.2]} 56... Kb8 {[%clk 0:00:27.4]} 57. c6 {[%clk 0:00:10.1]} 57... Ka7
{[%clk 0:00:26.4]} 58. Rd7 {[%clk 0:00:08.9]} 58... Kb8 {[%clk 0:00:24.7]} 59.
Rxc7 {[%clk 0:00:08.3]} 59... Kxc7 {[%clk 0:00:25.6]} 60. b5 {[%clk 0:00:09.2]}
1-0

[Event "*** Titled Tuesday Blitz"]
[Site "Chess.com"]
[Date "2020.05.12"]
[Round "5"]
[White "Kotofeyca"]
[Black "Buffy7"]
[Result "1-0"]
[WhiteElo "2448"]
[BlackElo "2671"]
[TimeControl "180+1"]
[EndTime "10:56:26 PDT"]
[Termination "Kotofeyca won by resignation"]

1. d4 {[%clk 0:03:00.9]} 1... Nf6 {[%clk 0:03:00.2]} 2. c4 {[%clk 0:02:59.5]}
2... e6 {[%clk 0:03:00.7]} 3. Nf3 {[%clk 0:02:59.4]} 3... b6 {[%clk 0:03:00.5]}
4. g3 {[%clk 0:02:59.6]} 4... Ba6 {[%clk 0:03:00.3]} 5. Qa4 {[%clk 0:02:58.7]}
5... Bb7 {[%clk 0:02:50.4]} 6. Bg2 {[%clk 0:02:58.7]} 6... c5 {[%clk 0:02:50.6]}
7. dxc5 {[%clk 0:02:58.6]} 7... bxc5 {[%clk 0:02:50.9]} 8. O-O {[%clk
0:02:59.1]} 8... Be7 {[%clk 0:02:50.1]} 9. Rd1 {[%clk 0:02:59.6]} 9... O-O
{[%clk 0:02:48.3]} 10. Nc3 {[%clk 0:03:00.2]} 10... Qb6 {[%clk 0:02:46.8]} 11.
Bf4 {[%clk 0:02:59.6]} 11... d6 {[%clk 0:02:42.8]} 12. Rd2 {[%clk 0:02:58.8]}
12... Rd8 {[%clk 0:02:32.1]} 13. Rad1 {[%clk 0:02:57.8]} 13... Ne8 {[%clk
0:02:29.2]} 14. Nb5 {[%clk 0:02:49.8]} 14... Bc6 {[%clk 0:02:19.2]} 15. Qc2
{[%clk 0:02:04.7]} 15... d5 {[%clk 0:02:04.4]} 16. Ne5 {[%clk 0:01:30.8]} 16...
Bxb5 {[%clk 0:01:59]} 17. cxb5 {[%clk 0:01:31.7]} 17... Qxb5 {[%clk 0:01:56.9]}
18. e4 {[%clk 0:01:31]} 18... d4 {[%clk 0:01:51.3]} 19. Nc4 {[%clk 0:01:16.1]}
19... Nc6 {[%clk 0:01:50]} 20. e5 {[%clk 0:01:13.7]} 20... Rac8 {[%clk
0:01:45.1]} 21. b3 {[%clk 0:00:56.8]} 21... Nb4 {[%clk 0:01:43.5]} 22. Qe4
{[%clk 0:00:52.7]} 22... Nd5 {[%clk 0:01:41.4]} 23. h4 {[%clk 0:00:48.4]} 23...
Nc3 {[%clk 0:01:39.4]} 24. Qd3 {[%clk 0:00:46.6]} 24... Nxd1 {[%clk 0:01:37.3]}
25. Rxd1 {[%clk 0:00:47.5]} 25... a5 {[%clk 0:01:31.5]} 26. Be4 {[%clk
0:00:46.8]} 26... h6 {[%clk 0:01:29.2]} 27. Kg2 {[%clk 0:00:46.3]} 27... a4
{[%clk 0:01:28.6]} 28. Qf3 {[%clk 0:00:33.5]} 28... axb3 {[%clk 0:01:27.4]} 29.
axb3 {[%clk 0:00:34.4]} 29... Bf8 {[%clk 0:01:07.3]} 30. g4 {[%clk 0:00:31.5]}
30... Rb8 {[%clk 0:01:05]} 31. Rd3 {[%clk 0:00:30.8]} 31... g6 {[%clk
0:00:58.5]} 32. Bd2 {[%clk 0:00:19.2]} 32... Qa6 {[%clk 0:00:47.8]} 33. Qf4
{[%clk 0:00:16.4]} 33... Qa2 {[%clk 0:00:38.6]} 34. Rf3 {[%clk 0:00:15.4]} 34...
Rd7 {[%clk 0:00:30.2]} 35. Bc6 {[%clk 0:00:15.1]} 35... Rc7 {[%clk 0:00:28.4]}
36. Ba4 {[%clk 0:00:15.1]} 36... Ra8 {[%clk 0:00:25.6]} 37. Nd6 {[%clk
0:00:10.4]} 37... Nxd6 {[%clk 0:00:11.5]} 38. exd6 {[%clk 0:00:11.3]} 38... Bxd6
{[%clk 0:00:10.3]} 39. Qxd6 {[%clk 0:00:10.6]} 39... Raa7 {[%clk 0:00:10.8]} 40.
Qd8+ {[%clk 0:00:10]} 40... Kh7 {[%clk 0:00:10.9]} 41. Qf8 {[%clk 0:00:09]}
41... Qxd2 {[%clk 0:00:10.6]} 42. Be8 {[%clk 0:00:07.2]} 42... Qe2 {[%clk
0:00:10.7]} 43. Bxf7 {[%clk 0:00:06.9]} 43... Rc8 {[%clk 0:00:08.1]} 44. Qxc8
{[%clk 0:00:02.3]} 44... Qxf3+ {[%clk 0:00:09]} 45. Kxf3 {[%clk 0:00:03]} 45...
Rxf7+ {[%clk 0:00:09.4]} 46. Kg3 {[%clk 0:00:03.4]} 46... g5 {[%clk 0:00:09.3]}
47. Qxc5 {[%clk 0:00:03.7]} 47... Kg7 {[%clk 0:00:09.9]} 48. Qxd4+ {[%clk
0:00:03.4]} 48... e5 {[%clk 0:00:10.8]} 49. Qxe5+ {[%clk 0:00:02.6]} 49... Kg8
{[%clk 0:00:11.7]} 50. h5 {[%clk 0:00:03.3]} 50... Rb7 {[%clk 0:00:12.4]} 51.
Qd5+ {[%clk 0:00:03.6]} 51... Kf8 {[%clk 0:00:13.3]} 52. Qxb7 {[%clk 0:00:04.3]}
1-0

[Event "*** Titled Tuesday Blitz"]
[Site "Chess.com"]
[Date "2020.05.12"]
[Round "5"]
[White "RobertoJBM"]
[Black "mc4chess"]
[Result "1-0"]
[WhiteElo "2583"]
[BlackElo "2410"]
[TimeControl "180+1"]
[EndTime "10:56:28 PDT"]
[Termination "RobertoJBM won on time"]

1. d4 {[%clk 0:03:00.9]} 1... Nf6 {[%clk 0:02:59.3]} 2. c4 {[%clk 0:03:00.5]}
2... e5 {[%clk 0:02:56.5]} 3. dxe5 {[%clk 0:03:00.2]} 3... Ng4 {[%clk
0:02:56.6]} 4. Bf4 {[%clk 0:02:59.4]} 4... Nc6 {[%clk 0:02:56.9]} 5. Nf3 {[%clk
0:02:59.3]} 5... Bb4+ {[%clk 0:02:56.6]} 6. Nbd2 {[%clk 0:02:57.8]} 6... Qe7
{[%clk 0:02:57.5]} 7. e3 {[%clk 0:02:56.4]} 7... Ngxe5 {[%clk 0:02:58]} 8. Nxe5
{[%clk 0:02:56.7]} 8... Nxe5 {[%clk 0:02:58.5]} 9. a3 {[%clk 0:02:57.2]} 9...
Bxd2+ {[%clk 0:02:57.8]} 10. Qxd2 {[%clk 0:02:58.1]} 10... O-O {[%clk
0:02:53.9]} 11. Be2 {[%clk 0:02:58.4]} 11... d6 {[%clk 0:02:53.3]} 12. O-O
{[%clk 0:02:58.6]} 12... b6 {[%clk 0:02:52.8]} 13. f3 {[%clk 0:02:52.1]} 13...
Ng6 {[%clk 0:02:48]} 14. Bg3 {[%clk 0:02:52.4]} 14... Bb7 {[%clk 0:02:43.5]} 15.
Rfe1 {[%clk 0:02:51.9]} 15... f5 {[%clk 0:02:40.7]} 16. Bd3 {[%clk 0:02:50.2]}
16... Ne5 {[%clk 0:02:35.1]} 17. Be2 {[%clk 0:02:47.3]} 17... Rae8 {[%clk
0:02:32.2]} 18. Rad1 {[%clk 0:02:46.8]} 18... Ng6 {[%clk 0:02:28.7]} 19. Bd3
{[%clk 0:02:45]} 19... Ne5 {[%clk 0:02:27.7]} 20. Be2 {[%clk 0:02:45.3]} 20...
a5 {[%clk 0:02:27.4]} 21. b3 {[%clk 0:02:44.2]} 21... Ng6 {[%clk 0:02:25]} 22.
Bd3 {[%clk 0:02:44.6]} 22... Ne5 {[%clk 0:02:25]} 23. Be2 {[%clk 0:02:45]} 23...
Kh8 {[%clk 0:02:24.9]} 24. Qc3 {[%clk 0:02:42.6]} 24... Ng6 {[%clk 0:02:15.3]}
25. Bd3 {[%clk 0:02:41.7]} 25... Qg5 {[%clk 0:02:14.9]} 26. Qd2 {[%clk
0:02:36.3]} 26... h5 {[%clk 0:01:54]} 27. f4 {[%clk 0:01:57.5]} 27... Qf6 {[%clk
0:01:52.8]} 28. h3 {[%clk 0:01:37.9]} 28... Re7 {[%clk 0:01:52.6]} 29. Bf2
{[%clk 0:01:36.5]} 29... Rfe8 {[%clk 0:01:47.7]} 30. Bf1 {[%clk 0:01:36.4]}
30... Re6 {[%clk 0:01:29.3]} 31. Kh2 {[%clk 0:01:35.8]} 31... Ne7 {[%clk
0:01:16.9]} 32. b4 {[%clk 0:01:27.8]} 32... axb4 {[%clk 0:01:15.1]} 33. axb4
{[%clk 0:01:28.7]} 33... Qg6 {[%clk 0:01:15]} 34. Bh4 {[%clk 0:01:25.2]} 34...
Ng8 {[%clk 0:01:12.3]} 35. c5 {[%clk 0:01:21.2]} 35... bxc5 {[%clk 0:01:11.9]}
36. bxc5 {[%clk 0:01:22.1]} 36... dxc5 {[%clk 0:01:08.4]} 37. Qc3 {[%clk
0:01:08.4]} 37... Nf6 {[%clk 0:00:36.2]} 38. Qxc5 {[%clk 0:01:02.8]} 38... Ne4
{[%clk 0:00:20.8]} 39. Qxc7 {[%clk 0:00:57.7]} 39... Bc6 {[%clk 0:00:20.2]} 40.
Rd8 {[%clk 0:00:51.5]} 40... Kh7 {[%clk 0:00:19.6]} 41. Rxe8 {[%clk 0:00:51.6]}
41... Rxe8 {[%clk 0:00:20.1]} 42. Qa5 {[%clk 0:00:38.3]} 42... Ra8 {[%clk
0:00:18]} 43. Qb6 {[%clk 0:00:29.6]} 43... Nd2 {[%clk 0:00:17.1]} 44. Qb2 {[%clk
0:00:19.2]} 44... Nxf1+ {[%clk 0:00:06.7]} 45. Rxf1 {[%clk 0:00:20.1]} 45... Bd5
{[%clk 0:00:07.5]} 46. Rf2 {[%clk 0:00:20.3]} 46... Ra2 {[%clk 0:00:07.2]} 47.
Qxa2 {[%clk 0:00:20.3]} 47... Bxa2 {[%clk 0:00:08.1]} 48. Rxa2 {[%clk
0:00:20.9]} 48... Qe6 {[%clk 0:00:08]} 49. Re2 {[%clk 0:00:21]} 49... Qc4 {[%clk
0:00:07.3]} 50. Re1 {[%clk 0:00:19.8]} 50... Kg6 {[%clk 0:00:07.5]} 51. Kg1
{[%clk 0:00:19.8]} 51... Qc3 {[%clk 0:00:06.7]} 52. Kf2 {[%clk 0:00:19.4]} 52...
Qc2+ {[%clk 0:00:05.7]} 53. Re2 {[%clk 0:00:20.3]} 53... Qe4 {[%clk 0:00:06.3]}
54. Rd2 {[%clk 0:00:20.4]} 54... Qb4 {[%clk 0:00:03]} 55. Rc2 {[%clk 0:00:19.4]}
55... Kh7 {[%clk 0:00:01.9]} 56. Re2 {[%clk 0:00:19.7]} 1-0